fUSD/lending_fUSD_20240724
["ID","MTS","AMOUNT","RATE_DAILY","PERIOD"]
[333055986,1721782232180,-7437.2549129,0.000109,2]
[333055992,1721782237593,-3641.2040372,0.000109,2]
[333055993,1721782237707,-504.3514221,0.000109,2]
[333056032,1721782239646,-1139.11643078,0.000109,2]
[333056033,1721782239658,-661.0,0.000109,2]
[333056034,1721782239794,-1364.62632976,0.000109,2]
[333056035,1721782239838,-23792.85499929,0.000109,2]
[333056036,1721782239850,-63.68224689,0.000109,2]
[333056037,1721782239859,-177.42557793,0.000109,2]
[333056038,1721782239870,-209.63212771,0.000109,2]
[333056039,1721782239879,-198.87616885,0.000109,2]
[333056040,1721782239888,-5611.50164361,0.000109,2]
[333056041,1721782239959,-325.39748724,0.000109,2]
[333056042,1721782240023,-55001.98946915,0.000109,2]
[333056043,1721782240036,-165.18250567,0.000109,2]
[333056044,1721782240046,-264.33008949,0.00010999,2]
[333056045,1721782240055,-267.77054585,0.00010999,2]
[333056046,1721782240066,-232.22945415,0.00010999,2]
[333056047,1721782240076,-500.0,0.00010999,2]
[333056048,1721782240085,-500.0,0.00010999,2]
[333056049,1721782240095,-1773.9,0.00010999,2]
[333056050,1721782240105,-101.99850421,0.00010999,2]
[333056066,1721782242900,-1671.90149579,0.00010999,2]
[333056067,1721782242910,-706.62927701,0.00010999,2]
[333056073,1721782245691,-1067.27072299,0.00010999,2]
[333056074,1721782245700,-587.76761982,0.00010999,2]
[333056075,1721782245751,-1186.13238018,0.00010999,2]
[333056076,1721782245761,-2.21761982,0.00010999,2]
[333056077,1721782245773,-489.85964833,0.00010999,2]
[333056078,1721782245869,-487.94323696,0.00010999,2]
[333056079,1721782245937,-793.87949489,0.00010999,2]
[333056080,1721782245947,-1773.9,0.00010999,2]
[333056081,1721782245956,-2.63943779,0.00010999,2]
[333056147,1721782302003,564.48,8.351e-05,2]
[333056150,1721782955879,150.0,8.219e-05,2]
[333056151,1721782955900,150.0,8.219e-05,2]
[333056152,1721782955922,150.0,8.219e-05,2]
[333056153,1721782955943,86.25,8.219e-05,2]
[333056154,1721782988838,150.0,8.351e-05,2]
[333056155,1721782988860,150.0,8.351e-05,2]
[333056156,1721782988881,150.0,8.351e-05,2]
[333056157,1721782988902,150.0,8.351e-05,2]
[333056158,1721782988923,150.0,8.351e-05,2]
[333056159,1721782988945,150.0,8.351e-05,2]
[333056160,1721782988965,150.0,8.351e-05,2]
[333056161,1721782988985,150.0,8.351e-05,2]
[333056162,1721782989007,150.0,8.351e-05,2]
[333056163,1721782989028,150.0,8.351e-05,2]
[333056164,1721782989049,150.0,8.351e-05,2]
[333056165,1721782989069,150.0,8.351e-05,2]
[333056166,1721782989089,150.0,8.351e-05,2]
[333056167,1721782989110,150.0,8.351e-05,2]
[333056168,1721782989131,150.0,8.351e-05,2]
[333056169,1721782989156,150.0,8.351e-05,2]
[333056170,1721782989177,150.0,8.351e-05,2]
[333056171,1721782989199,150.0,8.351e-05,2]
[333056172,1721782989220,244.07984662,8.351e-05,2]
[333056173,1721782989245,7055.92015338,8.351e-05,2]
[333056174,1721783014116,8580.89794118,8.219e-05,2]
[333056217,1721783397940,209.71,8.219e-05,2]
[333056228,1721783431766,-330.07013484,9.52e-05,2]
[333056229,1721783431781,-348.92986516,9.52e-05,2]
[333056230,1721783431792,-882.93,9.521e-05,2]
[333056231,1721783431802,-966.38024953,9.521e-05,2]
[333056232,1721783431811,-152.16019048,9.649e-05,2]
[333056233,1721783431820,-155.8,9.658e-05,2]
[333056234,1721783431830,-1000.0,9.689e-05,2]
[333056235,1721783431839,-300.0,9.692e-05,2]
[333056236,1721783431848,-15108.17,9.693e-05,2]
[333056237,1721783431857,-1897.27,9.764e-05,2]
[333056238,1721783431866,-153.77388829,9.834e-05,2]
[333056239,1721783431875,-6168.59,9.836e-05,2]
[333056240,1721783431885,-250.0,9.848e-05,2]
[333056241,1721783431894,-188.15773052,9.888e-05,2]
[333056242,1721783431904,-154.90969968,9.911e-05,2]
[333056243,1721783431913,-808.37,9.962e-05,2]
[333056244,1721783431922,-1255.76158876,9.962e-05,2]
[333056245,1721783431931,-947.25112385,0.00010122,2]
[333056246,1721783431940,-356.81263516,0.00010122,2]
[333056247,1721783431949,-175.66701087,0.00010122,2]
[333056248,1721783431958,-200.0,0.000104,3]
[333056249,1721783431968,-536.25,0.0001046,2]
[333056250,1721783431977,-150.0,0.00010474,2]
[333056251,1721783431988,-15882.95,0.00010475,2]
[333056252,1721783431998,-16878.79,0.00010475,2]
[333056253,1721783432008,-1106.39,0.00010475,2]
[333056254,1721783432019,-500.0,0.000105,3]
[333056255,1721783432029,-152.16019048,0.00010548,2]
[333056256,1721783432039,-653.10534714,0.0001059,2]
[333056257,1721783432049,-700.0,0.000106,3]
[333056258,1721783432058,-420.0,0.00010662,2]
[333056259,1721783432067,-1000.0,0.000107,3]
[333056260,1721783432077,-182.97050079,0.000108,2]
[333056261,1721783432086,-1200.0,0.000108,3]
[333056262,1721783432095,-363.7067,0.00010899,2]
[333056263,1721783432105,-1690.5098,0.000109,2]
[333056264,1721783432115,-38719.5049,0.000109,2]
[333056265,1721783432124,-1303.5387,0.000109,2]
[333056266,1721783432134,-22266.6348,0.000109,2]
[333056267,1721783432143,-3193.4503,0.000109,2]
[333056268,1721783432152,-1000.0,0.000109,2]
[333056269,1721783432162,-4209.4701,0.000109,2]
[333056270,1721783432171,-463.02896679,0.000109,2]
[333056271,1721783432181,-3211.8173,0.000109,2]
[333056272,1721783432190,-194.55896153,0.000109,2]
[333056273,1721783432200,-970.86080875,0.000109,2]
[333056274,1721783432209,-200.0,0.000109,3]
[333056275,1721783432219,-2207.1237,0.000109,2]
[333056276,1721783432228,-403.35469094,0.000109,2]
[333056277,1721783432237,-1000.0,0.000109,2]
[333056278,1721783432246,-496.19,0.00010959,2]
[333056279,1721783432255,-300.29482751,0.00010999,2]
[333056280,1721783432265,-412.49430383,0.00010999,2]
[333056281,1721783432276,-181.54289042,0.00010999,2]
[333056282,1721783432288,-230.50367288,0.00010999,2]
[333056283,1721783432298,-1719.62456,0.00010999,2]
[333056284,1721783432307,-630.03,0.00010999,2]
[333056285,1721783432316,-630.03,0.00010999,2]
[333056286,1721783432327,-630.03,0.00010999,2]
[333056287,1721783432336,-630.03,0.00010999,2]
[333056288,1721783432346,-630.03,0.00010999,2]
[333056289,1721783432357,-630.03,0.00010999,2]
[333056290,1721783432367,-630.03,0.00010999,2]
[333056291,1721783432377,-630.03,0.00010999,2]
[333056292,1721783432387,-630.03,0.00010999,2]
[333056293,1721783432397,-630.03,0.00010999,2]
[333056294,1721783432407,-630.03,0.00010999,2]
[333056295,1721783432417,-630.03,0.00010999,2]
[333056296,1721783432427,-630.03,0.00010999,2]
[333056297,1721783432436,-630.03,0.00010999,2]
[333056298,1721783432446,-630.03,0.00010999,2]
[333056299,1721783432455,-630.03,0.00010999,2]
[333056300,1721783432465,-630.03,0.00010999,2]
[333056301,1721783432474,-630.03,0.00010999,2]
[333056302,1721783432484,-630.03,0.00010999,2]
[333056303,1721783432494,-630.03,0.00010999,2]
[333056304,1721783432504,-630.03,0.00010999,2]
[333056305,1721783432513,-630.03,0.00010999,2]
[333056306,1721783432523,-630.03,0.00010999,2]
[333056307,1721783432532,-630.21,0.00010999,2]
[333056308,1721783432542,-1330.31,0.00010999,2]
[333056309,1721783432551,-1330.31,0.00010999,2]
[333056310,1721783432560,-1330.31,0.00010999,2]
[333056311,1721783432570,-1330.31,0.00010999,2]
[333056312,1721783432579,-1330.31,0.00010999,2]
[333056313,1721783432589,-1330.31,0.00010999,2]
[333056314,1721783432599,-1330.31,0.00010999,2]
[333056315,1721783432609,-1330.31,0.00010999,2]
[333056316,1721783432619,-1330.31,0.00010999,2]
[333056317,1721783432629,-1330.31,0.00010999,2]
[333056318,1721783432640,-1330.31,0.00010999,2]
[333056319,1721783432649,-1330.31,0.00010999,2]
[333056320,1721783432659,-1330.31,0.00010999,2]
[333056321,1721783432670,-1330.31,0.00010999,2]
[333056322,1721783432679,-1330.31,0.00010999,2]
[333056323,1721783432688,-1330.31,0.00010999,2]
[333056324,1721783432699,-1330.31,0.00010999,2]
[333056325,1721783432708,-1330.31,0.00010999,2]
[333056326,1721783432718,-1330.31,0.00010999,2]
[333056327,1721783432728,-1330.31,0.00010999,2]
[333056328,1721783432739,-1330.31,0.00010999,2]
[333056329,1721783432749,-1330.31,0.00010999,2]
[333056330,1721783432758,-347.09163168,0.00010999,2]
[333056331,1721783432767,-1330.31,0.00010999,2]
[333056332,1721783432777,-1330.45354909,0.00010999,2]
[333056333,1721783432787,-537322.92205415,0.00011,2]
[333056334,1721783432799,-960.18502033,0.00011,2]
[333056335,1721783432815,-270.03107511,0.00011,2]
[333056336,1721783432827,-783902.41627151,0.00011,2]
[333056337,1721783433182,-21764.73167455,0.00011,2]
[333056338,1721783433195,-66867.49001581,0.00011,2]
[333056339,1721783433252,-9299.18366164,0.00011,2]
[333056356,1721783437797,-1255.76158876,9.962e-05,2]
[333056357,1721783437806,-181.89139924,0.00010959,2]
[333056358,1721783438009,-577.70860076,0.00010959,2]
[333056359,1721783438018,-19117.44036827,0.00011,2]
[333056360,1721783438110,-29044.86442533,0.00011,2]
[333056419,1721783440111,-606.09199888,0.00011,2]
[333056420,1721783440125,-2913.57904897,0.00011,2]
[333056421,1721783440138,-16040.5,0.00011,2]
[333056422,1721783440205,-1608.52092669,0.00011,2]
[333056423,1721783440216,-1829.78079802,0.00011,2]
[333056459,1721783442979,-13501.70307668,0.00011,2]
[333056460,1721783443072,-6318.80328979,0.00011,2]
[333056461,1721783443159,-419.94274078,0.00011,2]
[333056462,1721783443314,-10074.11732962,0.00011,2]
[333056469,1721783445933,-1064.73000001,0.00011,2]
[333056470,1721783445945,-1152.73916321,0.00011,2]
[333056471,1721783445956,-341.935,0.00011,2]
[333056472,1721783446036,-2718.2947689,0.00011,2]
[333056473,1721783446047,-1952.87566669,0.00011,2]
[333056474,1721783446066,-13682.7831512,0.00011,2]
[333056475,1721783446306,-3509.05707583,0.00011,2]
[333056494,1721783502133,546.97,8.496e-05,2]
[333056495,1721783550746,150.0,0.00014858,120]
[333056496,1721783555759,165.20369884,8.496e-05,2]
[333056498,1721783730759,150.0,0.00014474,120]
[333056499,1721783971403,150.0,0.00015243,120]
[333056500,1721784030889,519.62,8.219e-05,2]
[333056830,1721784571830,493.63,8.219e-05,2]
[333056856,1721784632289,-448.91,9.378e-05,2]
[333056857,1721784632300,-1235.29,9.396e-05,2]
[333056858,1721784632310,-755.89,9.417e-05,2]
[333056859,1721784632320,-250.0,9.437e-05,2]
[333056860,1721784632330,-5518.91007,9.455e-05,2]
[333056861,1721784632346,-520.99909618,9.455e-05,2]
[333056862,1721784632358,-804.43551989,9.455e-05,2]
[333056863,1721784632503,-256.269,9.455e-05,2]
[333056864,1721784632515,-1625.96514294,9.455e-05,2]
[333056865,1721784632526,-500.0,9.455e-05,2]
[333056866,1721784632538,-120.86117099,9.455e-05,2]
[333056867,1721784632547,-169.56146874,9.501e-05,2]
[333056868,1721784632556,-36.97541406,9.501e-05,2]
[333056869,1721784632568,-213.02458594,9.501e-05,2]
[333056870,1721784632577,-152.16019048,9.807e-05,2]
[333056871,1721784632589,-115.94759327,9.82e-05,2]
[333056916,1721784638164,-74.99120673,9.82e-05,2]
[333056919,1721784638174,-150.0,9.919e-05,2]
[333056921,1721784638184,-24571.1846678,9.92e-05,2]
[333056926,1721784638344,-2545.51106517,9.92e-05,2]
[333056927,1721784638535,-720.7119,9.92e-05,2]
[333056928,1721784638547,-4102.02946677,9.92e-05,2]
[333056929,1721784638559,-865.69,9.92e-05,2]
[333056930,1721784638571,-7346.52340112,9.92e-05,2]
[333056977,1721784640295,-66204.68837052,9.92e-05,2]
[333056978,1721784640438,-810.64064582,9.92e-05,2]
[333056979,1721784640450,-669.85386691,9.92e-05,2]
[333056980,1721784640462,-443.0,9.92e-05,2]
[333056981,1721784640601,-490.39151482,9.92e-05,2]
[333056982,1721784640613,-17343.68528114,9.92e-05,2]
[333056983,1721784640624,-24085.08981993,9.92e-05,2]
[333056984,1721784640634,-160.41,9.95e-05,2]
[333056985,1721784640644,-160.41,9.959e-05,2]
[333056986,1721784640654,-155.0,9.962e-05,2]
[333056987,1721784640668,-355.12403419,9.962e-05,2]
[333056988,1721784640678,-155.14153549,9.962e-05,2]
[333056989,1721784640688,-155.06353274,9.962e-05,2]
[333056990,1721784640698,-160.41,9.967e-05,2]
[333056991,1721784640707,-160.41,9.975e-05,2]
[333056992,1721784640717,-160.41,9.984e-05,2]
[333056993,1721784640727,-160.41,9.992e-05,2]
[333056994,1721784640737,-412.49430383,0.0001,2]
[333056995,1721784640746,-2788.01196271,0.0001,2]
[333056996,1721784640756,-160.41,0.0001,2]
[333056997,1721784640765,-171.92,0.00010156,2]
[333056998,1721784640774,-1000.0,0.00010263,2]
[333056999,1721784640784,-155.16828948,0.00010298,2]
[333057000,1721784640793,-210.29076918,0.00010298,2]
[333057001,1721784640802,-162.03317157,0.00010298,2]
[333057002,1721784640812,-493.63,0.00010443,2]
[333057003,1721784640823,-2200.0,0.000105,5]
[333057004,1721784640834,-152.16019048,0.00010598,2]
[333057005,1721784640847,-156.02826449,0.00010656,2]
[333057006,1721784640856,-498.0,0.00010673,2]
[333057007,1721784640865,-154.90969968,0.00010726,2]
[333057008,1721784640875,-154.90969968,0.00010761,2]
[333057009,1721784640884,-244.0294,0.000108,2]
[333057010,1721784640894,-159.63083379,0.00010814,2]
[333057011,1721784640903,-2186.363892,0.000109,2]
[333057012,1721784640916,-463.02896679,0.000109,2]
[333057013,1721784640926,-201.6099,0.000109,2]
[333057014,1721784640935,-6644.6811,0.000109,2]
[333057015,1721784640945,-187.05307562,0.000109,2]
[333057016,1721784640954,-150.0,0.00010959,2]
[333057017,1721784640965,-2899.50437823,0.00010999,2]
[333057018,1721784640974,-80821.51079692,0.00011,2]
[333057019,1721784643296,-241.3635688,9.962e-05,2]
[333057020,1721784643306,-7477.78673359,0.00011,2]
[333057026,1721784643616,-335.22778803,0.00011,2]
[333057027,1721784643628,-3010.77402071,0.00011,2]
[333057050,1721784646233,-877.39097401,0.00011,2]
[333057066,1721784646394,-473.89259586,0.00011,2]
[333057081,1721784646787,-7205.32164118,0.00011,2]
[333057082,1721784646799,-422.91126348,0.00011,2]
[333057083,1721784646810,-1592.51588198,0.00011,2]
[333057085,1721784676419,500.0,0.0001581,60]
[333057087,1721784689908,500.0,0.0001581,60]
[333057088,1721784709352,500.0,0.0001581,60]
[333057089,1721784741965,1040.59647019,0.0001581,60]
[333057091,1721785103972,466.57,8.394e-05,2]
[333057092,1721785129418,155.11892663,8.394e-05,2]
[333057093,1721785617799,443.24,8.219e-05,2]
[333057113,1721785832308,-1017.02690776,9.82e-05,2]
[333057126,1721785832495,-240.06099224,9.82e-05,2]
[333057128,1721785832505,-299.06893715,9.962e-05,2]
[333057129,1721785832516,-956.80461694,9.962e-05,2]
[333057130,1721785832525,-300.0,9.986e-05,2]
[333057131,1721785832535,-300.0,9.986e-05,2]
[333057132,1721785832544,-5969.38363714,9.987e-05,2]
[333057133,1721785832555,-2300.0,9.987e-05,2]
[333057134,1721785832566,-9094.68636286,9.987e-05,2]
[333057135,1721785832575,-250.0,0.00010053,2]
[333057136,1721785832585,-653.49077509,0.00010174,2]
[333057137,1721785832594,-155.61609831,0.00010174,2]
[333057138,1721785832606,-947.3593045,0.00010174,2]
[333057139,1721785832615,-150.0,0.00010192,2]
[333057140,1721785832624,-172.86,0.00010233,2]
[333057141,1721785832633,-499.99,0.00010233,2]
[333057142,1721785832643,-236.02450291,0.00010266,2]
[333057143,1721785832653,-1000.0,0.00010267,2]
[333057144,1721785832663,-443.24,0.00010466,2]
[333057145,1721785832672,-2500.0,0.000105,2]
[333057146,1721785832681,-259.4259,0.00010799,2]
[333057147,1721785832690,-1138.6714,0.00010799,2]
[333057148,1721785832700,-308.437,0.00010799,2]
[333057149,1721785832709,-23685.1684,0.000108,2]
[333057150,1721785832718,-167.1245,0.000108,2]
[333057151,1721785832729,-193.22,0.00010822,3]
[333057152,1721785832739,-1436.01224,0.0001089,2]
[333057153,1721785832749,-70810.57451818,0.00010899,2]
[333057154,1721785832758,-4229.77436664,0.000109,2]
[333057155,1721785832793,-27508.17193751,0.000109,2]
[333057156,1721785832804,-1147.32716098,0.000109,2]
[333057157,1721785832816,-345.5,0.000109,2]
[333057158,1721785832827,-17247.662,0.000109,2]
[333057159,1721785832838,-18899.65641545,0.000109,2]
[333057177,1721785838520,-274.9913644,0.000109,2]
[333057178,1721785838531,-308.66866659,0.000109,2]
[333057179,1721785838590,-68944.35558843,0.000109,2]
[333057180,1721785838600,-463.06723591,0.000109,2]
[333057181,1721785838612,-98603.6202,0.000109,2]
[333057182,1721785838622,-15415.558,0.000109,2]
[333057183,1721785838631,-363.38600649,0.000109,2]
[333057184,1721785838642,-70810.57451811,0.00010911,2]
[333057185,1721785838652,-520.5467,0.00010945,2]
[333057186,1721785838662,-823.69,0.00010959,2]
[333057187,1721785838671,-420.0,0.00010985,2]
[333057188,1721785838680,-420.0,0.00010985,2]
[333057189,1721785838691,-2640.24119162,0.00010999,2]
[333057190,1721785838701,-200.0,0.00011,2]
[333057191,1721785838711,-824506.99953426,0.00011,2]
[333057192,1721785838724,-297.73623329,0.00011,2]
[333057193,1721785838735,-523.7503917,0.00011,2]
[333057194,1721785838746,-4468.13080134,0.00011,2]
[333057195,1721785838757,-11417.83091769,0.00011,2]
[333057196,1721785838768,-15090.96513034,0.00011,2]
[333057197,1721785838779,-8559.29733584,0.00011,2]
[333057198,1721785838824,-12338.90693721,0.00011,2]
[333057200,1721785838836,-1221.94394717,0.00011,2]
[333057203,1721785838847,-9551.3770682,0.00011,2]
[333057205,1721785838860,-29419.7076725,0.00011,2]
[333057207,1721785838871,-361.36140716,0.00011,2]
[333057209,1721785838883,-37533.27058409,0.00011,2]
[333057212,1721785840408,-256.62236691,0.00011,2]
[333057213,1721785840674,-1894.6009637,0.00011,2]
[333057214,1721785840686,-2536.80913655,0.00011,2]
[333057215,1721785840699,-760.74789201,0.00011,2]
[333057216,1721785840711,-63967.47450047,0.00011,2]
[333057217,1721785840722,-336.83736005,0.00011,2]
[333057218,1721785840733,-3698.49104601,0.00011,2]
[333057219,1721785840744,-1220.37728733,0.00011,2]
[333057220,1721785840922,-446.076718,0.00011,2]
[333057222,1721785840934,-1191.06342826,0.00011,2]
[333057223,1721785840990,-3564.32721609,0.00011,2]
[333057239,1721785843980,-547.95268239,0.00011,2]
[333057240,1721785843990,-4281.25529465,0.00011,2]
[333057241,1721785844001,-302.0,0.00011,2]
[333057242,1721785844267,-22243.14004938,0.00011,2]
[333057246,1721785846469,-1898.86705973,0.00011,2]
[333057248,1721785846787,-2176.89212476,0.00011,2]
[333057249,1721785846799,-8609.01591629,0.00011,2]
[333057250,1721785846810,-3070.60000002,0.00011,2]
[333057251,1721785846821,-5001.667079,0.00011,2]
[333057252,1721785846831,-5989.63281189,0.00011,2]
[333057253,1721785846842,-584.74,0.00011,2]
[333057254,1721785846853,-956.45,0.00011,2]
[333057255,1721785846898,-316.01403212,0.00011,2]
[333057258,1721786153961,437.76,8.27e-05,2]
[333057265,1721786726197,415.87,8.229e-05,2]
[333057280,1721787032830,-194.51484743,9.914e-05,2]
[333057281,1721787032841,-191.0,0.00010121,2]
[333057282,1721787032850,-1000.0,0.00010254,2]
[333057283,1721787032860,-194.51484741,0.00010357,2]
[333057284,1721787032870,-415.87,0.00010493,2]
[333057285,1721787032879,-171.0,0.000105,5]
[333057286,1721787032889,-164.42304686,0.00010583,2]
[333057287,1721787032899,-300.0,0.00010798,2]
[333057288,1721787032908,-684.9042,0.00010799,2]
[333057289,1721787032918,-5510.4007,0.00010799,2]
[333057290,1721787032928,-801.3801,0.00010799,2]
[333057291,1721787032937,-299.99,0.000108,2]
[333057292,1721787032948,-194.51484741,0.000108,2]
[333057293,1721787032957,-3501.0,0.0001089,2]
[333057294,1721787032966,-1196.67687,0.0001089,2]
[333057295,1721787032975,-49336.00875426,0.00010899,2]
[333057296,1721787032987,-7312.4508603,0.00010899,2]
[333057297,1721787032997,-216.2027,0.000109,2]
[333057298,1721787033007,-1000.0,0.000109,2]
[333057299,1721787033016,-242.25733766,0.000109,2]
[333057300,1721787033026,-272.323,0.00010903,2]
[333057301,1721787033036,-2675.769,0.00010903,2]
[333057302,1721787033046,-56648.45961448,0.00010911,2]
[333057303,1721787033057,-500.0,0.00010912,2]
[333057304,1721787033066,-5791.78,0.00010959,2]
[333057306,1721787033076,-9387.99203175,0.00010997,2]
[333057307,1721787033085,-200.0,0.00011,2]
[333057309,1721787033095,-278895.33276768,0.00011,2]
[333057316,1721787038865,-3505.57294356,0.00011,2]
[333057317,1721787038876,-1646.80723345,0.00011,2]
[333057319,1721787039100,-3055.545,0.00011,2]
[333057322,1721787040685,-250.0,0.00010387,2]
[333057324,1721787040695,-710.10966501,0.00011,2]
[333057325,1721787040706,-395.48039178,0.00011,2]
[333057326,1721787040717,-763.48000001,0.00011,2]
[333057327,1721787040728,-730.07124766,0.00011,2]
[333057328,1721787040739,-555.48287764,0.00011,2]
[333057329,1721787040750,-547.52749393,0.00011,2]
[333057330,1721787040931,-731.17635156,0.00011,2]
[333057331,1721787040942,-7172.93679144,0.00011,2]
[333057332,1721787040953,-20391.59999999,0.00011,2]
[333057333,1721787040964,-574.03358918,0.00011,2]
[333057334,1721787040975,-703.9999999,0.00011,2]
[333057335,1721787041159,-3549.26405818,0.00011,2]
[333057336,1721787041170,-5859.33696734,0.00011,2]
[333057337,1721787041180,-6036.01065654,0.00011,2]
[333057338,1721787041191,-1489.433276,0.00011,2]
[333057339,1721787041202,-1247.19195163,0.00011,2]
[333057343,1721787043633,-54455.79681227,0.00011,2]
[333057344,1721787043644,-811.51571162,0.00011,2]
[333057345,1721787043857,-43545.34206197,0.00011,2]
[333057346,1721787043869,-328.7496445,0.00011,2]
[333057347,1721787043880,-1747.575,0.00011,2]
[333057348,1721787043891,-382551.15528427,0.00011,2]
[333057349,1721787043903,-559.40606601,0.00011,2]
[333057350,1721787044036,-343.03291676,0.00011,2]
[333057352,1721787044047,-1230.15738554,0.00011,2]
[333057354,1721787044058,-840.64392545,0.00011,2]
[333057355,1721787044070,-8212.32735719,0.00011,2]
[333057356,1721787044081,-1023.82317081,0.00011,2]
[333057357,1721787044091,-301.616,0.00011,2]
[333057380,1721787046631,-793.04,0.00010959,2]
[333057382,1721787046640,-13444.33580089,0.00011,2]
[333057436,1721787047163,-1313.87865291,0.00011,2]
[333057438,1721787047175,-2005.41747305,0.00011,2]
[333057440,1721787047186,-375.76220257,0.00011,2]
[333057442,1721787047198,-7511.43041172,0.00011,2]
[333057445,1721787047209,-6608.37094698,0.00011,2]
[333057448,1721787047229,-6820.16800034,0.00011,2]
[333057450,1721787047240,-1462.76416002,0.00011,2]
[333057452,1721787047251,-2372.81520537,0.00011,2]
[333057454,1721787047263,-965.67310857,0.00011,2]
[333057456,1721787047274,-2497.79507697,0.00011,2]
[333057459,1721787047290,-28332.9641297,0.00011,2]
[333057461,1721787047302,-6000.0,0.00011,2]
[333057464,1721787047313,-1774.86208729,0.00011,2]
[333057466,1721787047330,-7555.06873428,0.00011,2]
[333057470,1721787047357,-2213.63547088,0.00011,2]
[333057472,1721787047368,-25492.68481151,0.00011,2]
[333057474,1721787047380,-33642.00512688,0.00011,2]
[333057476,1721787047392,-824.59977352,0.00011,2]
[333057477,1721787047404,-11173.27156439,0.00011,2]
[333057480,1721787047416,-327.13377832,0.00011,2]
[333057484,1721787047433,-1383.40857251,0.00011,2]
[333057487,1721787047450,-1002.44274149,0.00011,2]
[333057491,1721787047462,-1972.98184722,0.00011,2]
[333057528,1721787520873,412.39,8.23e-05,2]
[333057546,1721788051249,391.77,8.219e-05,2]
[333057609,1721788233752,-158.30325693,9.348e-05,2]
[333057611,1721788233761,-150.05766677,9.742e-05,2]
[333057613,1721788233772,-347.21606861,9.962e-05,2]
[333057615,1721788233783,-175.50105352,9.962e-05,2]
[333057617,1721788233793,-635.26721356,0.00010023,2]
[333057618,1721788233829,-364.73278644,0.00010023,2]
[333057619,1721788233839,-3179.91,0.0001004,2]
[333057620,1721788233848,-171.47,0.00010125,2]
[333057621,1721788233858,-169.35308735,0.00010171,2]
[333057622,1721788233867,-391.77,0.00010476,2]
[333057623,1721788233876,-480.0,0.000105,5]
[333057624,1721788233887,-300.0,0.00010699,2]
[333057625,1721788233896,-300.0,0.00010699,2]
[333057626,1721788233906,-1000.0,0.000107,2]
[333057627,1721788233915,-300.07,0.000107,2]
[333057628,1721788233924,-1006.0,0.000107,2]
[333057629,1721788233933,-1000.0,0.000107,2]
[333057630,1721788233943,-1000.0,0.000107,2]
[333057631,1721788233952,-1000.0,0.000107,2]
[333057632,1721788233962,-1280.0,0.000107,2]
[333057633,1721788233971,-269.936,0.000108,2]
[333057634,1721788233980,-997.23073,0.0001089,2]
[333057635,1721788233990,-626.13253737,0.00010894,2]
[333057636,1721788233999,-45454.44676109,0.00010899,2]
[333057637,1721788234008,-183731.0498627,0.00010899,2]
[333057638,1721788234019,-1000.0,0.000109,2]
[333057639,1721788234029,-500.0,0.00010911,2]
[333057640,1721788234038,-45454.446761,0.00010911,2]
[333057641,1721788234048,-500.0,0.00010912,2]
[333057642,1721788234058,-200.0,0.00010959,2]
[333057643,1721788234067,-200.0,0.00010959,2]
[333057644,1721788234076,-200.0,0.00010959,2]
[333057645,1721788234085,-200.0,0.00010959,2]
[333057646,1721788234095,-200.0,0.00010959,2]
[333057647,1721788234104,-200.0,0.00010959,2]
[333057648,1721788234113,-200.0,0.00010959,2]
[333057649,1721788234123,-200.0,0.00010959,2]
[333057650,1721788234132,-49261.8551085,0.00010994,2]
[333057651,1721788234141,-1218.6991831,0.00010994,2]
[333057652,1721788234150,-183731.04986269,0.00010995,2]
[333057653,1721788234160,-181.13341845,0.00010998,2]
[333057654,1721788234169,-538.0,0.00011,2]
[333057655,1721788234179,-287.1,0.00011,2]